bitfinex/quotes_ETHUSD_20241030
["timestamp","ask_amount","ask_price","bid_price","bid_amount"]
[1730273843730,7.34830161,2671.5,2671.1,3.74377]
[1730273844116,7.34830161,2671.5,2671.2,3.74361]
[1730273844606,7.34830161,2671.5,2671.2,7.48714]
[1730273845147,7.34830161,2671.5,2671.3,3.74348]
[1730273845348,7.34830161,2671.5,2671.4,3.74335]
[1730273846042,7.34830161,2671.5,2671.4,4.575193]
[1730273849656,2.89,2671.6,2671.4,4.575193]
[1730273849657,0.7985,2672.4,2671.4,4.575193]
[1730273849827,7.028,2672.3,2671.9,3.74253]
[1730273850021,8.93865676,2672.3,2671.9,3.74253]
[1730273850614,12.68074676,2672.3,2671.7,3.74284]
[1730273850844,12.68074676,2672.3,2671.8,3.74279]
[1730273852049,8.93865676,2672.3,2671.8,3.74279]
[1730273853150,7.028,2672.3,2671.9,3.74258]
[1730273853720,7.028,2672.3,2671.8,7.4855]
[1730273854551,7.028,2672.3,2671.9,3.74264]
[1730273856452,7.028,2672.3,2672.0,3.74247]
[1730273856649,7.028,2672.3,2672.0,7.48489]
[1730273856853,7.028,2672.3,2672.0,3.74242]
[1730273861446,7.028,2672.3,2671.8,4.5167]
[1730273861447,0.823,2672.1,2671.8,3.74268]
[1730273862988,0.823,2672.1,2671.6,3.74294]
[1730273863282,0.823,2672.1,2671.8,3.74276]
[1730273863852,0.823,2672.1,2671.8,7.48552]
[1730273864381,0.823,2672.1,2671.8,3.74276]
[1730273866652,0.823,2672.1,2671.8,3.74268]
[1730273868091,0.823,2672.1,2671.8,7.48539]
[1730273868463,0.823,2672.1,2671.8,3.74268]
[1730273868980,7.7839,2672.3,2671.9,3.74265]
[1730273870088,11.52599,2672.3,2671.9,3.74265]
[1730273870967,11.52599,2672.3,2671.7,3.74292]
[1730273871168,11.52599,2672.3,2671.8,3.74274]
[1730273874557,7.7839,2672.3,2671.8,3.74274]
[1730273877601,7.7839,2672.3,2671.7,3.74292]
[1730273877804,7.7839,2672.3,2671.9,3.74262]
[1730273877977,9.77703961,2672.3,2671.9,3.74262]
[1730273879496,0.8174,2671.7,2671.3,3.74349]
[1730273879705,7.028,2671.6,2671.3,3.74349]
[1730273880197,0.7546,2671.5,2671.1,3.74369]
[1730273880698,0.7546,2671.5,2671.2,3.74354]
[1730273883177,0.7546,2671.5,2671.1,7.48738]
[1730273883178,7.7826,2671.5,2671.1,7.48738]
[1730273884076,7.7826,2671.5,2671.1,3.74369]
[1730273884285,7.7826,2671.5,2671.1,7.48738]
[1730273885376,7.7826,2671.5,2671.1,3.74369]
[1730273885768,7.7826,2671.5,2671.1,7.48738]
[1730273886126,7.7826,2671.5,2671.1,3.74369]
[1730273886668,7.7826,2671.5,2671.1,7.48739]
[1730273887108,7.7826,2671.5,2671.1,3.74369]
[1730273888614,7.7826,2671.5,2671.1,3.74368]
[1730273890188,7.7826,2671.5,2671.2,3.74362]
[1730273890679,7.7826,2671.5,2671.1,7.48737]
[1730273891699,7.7826,2671.5,2671.1,7.48736]
[1730273893127,7.7826,2671.5,2671.2,3.74362]
[1730273894106,7.7826,2671.5,2671.0,3.74383]
[1730273894514,8.96720416,2671.5,2671.0,3.74383]
[1730273894927,8.96720416,2671.5,2670.9,3.74395]
[1730273895135,4.52304,2671.4,2670.9,3.74395]
[1730273895307,0.7796,2671.3,2670.8,0.27781404]
[1730273895506,0.7796,2670.8,2670.4,1.22797615]
[1730273895732,10.77239,2670.7,2670.4,1.22797615]
[1730273896053,7.028,2670.7,2670.4,1.22797615]
[1730273896196,7.028,2670.7,2670.4,4.97265615]
[1730273897401,7.028,2670.7,2670.5,3.74449]
[1730273899003,7.028,2670.7,2670.4,4.97272615]
[1730273899732,7.028,2670.7,2670.5,3.74453]
[1730273899904,7.028,2670.7,2670.6,3.74447]
[1730273900848,0.791,2671.5,2671.2,3.74354]
[1730273901151,7.819,2671.5,2671.2,3.74354]
[1730273901831,7.819,2671.5,2671.3,3.74339]
[1730273902038,7.819,2671.5,2671.2,3.74354]
[1730273905101,7.819,2671.5,2671.2,7.48706]
[1730273905433,7.819,2671.5,2671.3,3.74347]
[1730273905618,7.028,2671.5,2671.4,3.74335]
[1730273906140,7.028,2671.5,2671.2,6.17075491]
[1730273906332,7.028,2671.5,2671.3,3.74348]
[1730273909412,7.028,2671.5,2671.4,3.74335]
[1730273925463,7.028,2671.5,2671.4,4.54625]
[1730273925662,0.32030161,2671.6,2671.5,3.74321]
[1730273927852,0.32030161,2671.6,2671.5,4.54611]
[1730273928051,0.32030161,2671.6,2671.5,5.89473845]
[1730273928457,0.32030161,2671.6,2671.5,6.44473845]
[1730273928754,7.028,2672.1,2672.0,3.74251]
[1730273931889,7.028,2672.1,2672.0,5.19585446]
[1730273932291,7.028,2672.1,2672.0,3.74251]
[1730273951705,7.028,2672.1,2672.0,4.29251]
[1730273955078,0.8185,2672.0,2671.8,0.55]
[1730273955979,0.8185,2672.0,2671.7,0.55]
[1730273957113,0.8185,2672.0,2671.7,4.29293]
[1730273957434,0.8185,2672.0,2671.7,0.55]
[1730273957606,0.8185,2672.0,2671.7,4.29293]
[1730273957805,0.8185,2672.0,2671.8,3.74267]
[1730273958910,7.028,2672.1,2672.0,4.29251]
[1730273959917,7.028,2672.1,2672.0,4.5701612]
[1730273961310,7.028,2672.1,2672.0,4.29251]
[1730273961511,7.028,2672.1,2672.0,4.57013989]
[1730273965134,7.028,2672.1,2672.0,4.57016471]
[1730273965429,7.028,2672.1,2672.0,5.74988854]
[1730273968223,0.32030161,2672.4,2672.1,0.55]
[1730273968427,0.32030161,2672.4,2672.2,3.7421]
[1730273968812,0.32030161,2672.4,2672.2,4.01987971]
[1730273969147,0.32030161,2672.4,2672.3,3.74209]
[1730273969305,0.32030161,2672.4,2672.2,4.02000569]
[1730273971314,0.32030161,2672.4,2672.3,0.27777569]
[1730273971549,0.32030161,2672.4,2672.2,4.02000569]
[1730273972239,0.30043978,2672.4,2672.3,0.27777569]
[1730273972420,0.30043978,2672.4,2672.3,0.27791997]
[1730273972642,0.30043978,2672.4,2672.3,4.02000997]
[1730273972826,0.30043978,2672.4,2672.3,4.91694544]
[1730273973030,0.30043978,2672.4,2672.3,6.64820987]
[1730273973439,0.30043978,2672.4,2672.3,7.46770987]
[1730273973639,7.028,2672.7,2672.3,7.46770987]
[1730273973640,7.028,2672.7,2672.5,4.29181]
[1730273973949,7.028,2672.7,2672.6,4.56958997]
[1730273974134,7.028,2672.7,2672.6,5.92025741]
[1730273974477,7.028,2672.7,2672.6,6.73905741]
[1730273975927,7.028,2672.7,2672.6,6.46113744]
[1730273976273,7.028,2672.7,2672.6,6.73869892]
[1730273976960,0.8263,2673.5,2672.7,3.74146]
[1730273977262,7.8543,2673.5,2673.2,3.74081]
[1730273978654,7.8543,2673.5,2673.2,3.74076]
[1730273978964,7.8543,2673.5,2673.2,3.74075]
[1730273979545,7.8543,2673.5,2673.2,8.93485446]
[1730273979845,7.8543,2673.5,2673.2,3.74075]
[1730273980389,0.8314,2673.3,2672.3,1.28363576]
[1730273980564,0.8314,2672.7,2672.3,5.02570576]
[1730273980883,0.8314,2672.7,2672.3,1.28363576]
[1730273981092,4.57294,2672.7,2672.3,1.28363576]
[1730273981683,0.8314,2672.7,2672.3,5.02562576]
[1730273981881,0.8314,2672.7,2672.3,1.28363576]
[1730273982286,0.8314,2672.7,2672.3,5.02572576]
[1730273982491,0.8314,2672.7,2672.3,1.28363576]
[1730273982665,0.8314,2672.7,2672.5,3.7418]
[1730273983193,0.8314,2672.7,2672.6,3.74167]
[1730273983354,0.8314,2672.7,2672.6,4.29167]
[1730273984185,7.028,2672.8,2672.6,4.29167]
[1730273989531,7.028,2672.8,2672.6,4.29159]
[1730273989694,7.028,2672.8,2672.6,0.55]
[1730273990403,0.8148,2672.7,2672.3,1.28363576]
[1730273990601,0.8148,2672.7,2672.4,0.55]
[1730273991635,0.8148,2672.7,2672.4,4.29182]
[1730273992012,0.8148,2672.7,2672.4,8.03369]
[1730273992212,0.8148,2672.7,2672.4,4.29182]
[1730273996552,2.1097971,2672.7,2672.3,4.96958615]
[1730273996928,5.8513971,2672.7,2672.3,1.22751615]
[1730273997331,2.1097971,2672.7,2672.3,4.96957615]
[1730273997731,0.8305,2672.6,2672.3,1.22751615]
[1730273998053,2.16615269,2672.6,2672.3,1.22751615]
[1730274002138,5.90783269,2672.6,2672.3,1.22751615]
[1730274002362,4.55695,2672.4,2672.3,1.22751615]
[1730274003842,0.815,2672.4,2672.3,1.22751615]
[1730274004354,4.55695,2672.4,2672.3,1.22751615]
[1730274004542,5.66572571,2672.4,2672.3,1.22751615]
[1730274013444,1.92377571,2672.4,2672.3,1.22751615]
[1730274013648,5.66572571,2672.4,2672.3,1.22751615]
[1730274013868,6.25140222,2672.4,2672.3,1.22751615]
[1730274025477,9.26140222,2672.4,2672.3,0.15343952]
[1730274025986,4.53589,2671.7,2670.8,0.7628]
[1730274026284,3.74337,2671.4,2670.8,8.25103]
[1730274026444,3.74337,2671.4,2670.9,0.27718834]
[1730274026650,3.74337,2671.4,2670.9,3.74402]
[1730274027600,3.74337,2671.4,2671.0,0.55]
[1730274028555,3.74337,2671.4,2670.9,0.55]
[1730274028755,3.74337,2671.4,2670.9,4.29394]
[1730274030759,4.54757,2671.4,2670.9,4.29394]
[1730274030955,4.54757,2671.4,2670.8,0.7628]
[1730274030956,3.74351,2671.3,2670.8,0.7628]
[1730274031271,4.54797,2671.1,2670.6,3.7444]
[1730274031591,10.772,2671.0,2670.5,0.8164]
[1730274031790,3.74408,2670.9,2670.5,0.8164]
[1730274032190,0.8042,2670.8,2670.4,4.97980581]
[1730274032393,0.8042,2670.8,2670.4,1.23514581]
[1730274032394,3.74435,2670.7,2670.4,1.23514581]
[1730274032701,5.38017247,2670.9,2670.4,1.23514581]
[1730274032702,4.54881,2670.5,2670.4,1.23514581]
[1730274033199,4.54881,2670.5,2670.4,0.36327081]
[1730274033404,5.52347445,2670.5,2670.4,0.36327081]
[1730274033763,3.74534,2670.0,2669.5,3.74592]
[1730274033962,7.028,2669.9,2669.5,3.74592]
[1730274034272,9.24874446,2669.9,2669.4,0.8084]
[1730274034599,9.24874446,2669.9,2669.1,3.74651]
[1730274034600,1.45334446,2669.7,2669.1,3.74651]
[1730274034756,0.51990645,2669.6,2669.1,3.74651]
[1730274035157,1.45334446,2669.5,2668.8,4.5516]
[1730274035458,2.26024446,2669.3,2668.7,3.80323111]
[1730274035666,2.26024446,2669.3,2668.8,3.7469]
[1730274035667,7.028,2669.2,2668.8,3.7469]
[1730274036283,7.028,2669.2,2668.7,0.05619111]
[1730274036716,7.028,2669.2,2668.7,3.80319111]
[1730274037388,7.028,2669.2,2668.8,3.74699]
[1730274037816,7.028,2669.2,2668.7,3.80319111]
[1730274038180,3.25388769,2669.0,2668.5,0.88206611]
[1730274038383,3.0,2668.9,2668.5,0.88206611]
[1730274038907,3.74728,2668.6,2668.5,0.88206611]
[1730274039113,10.77528,2668.6,2668.5,0.88206611]
[1730274039315,13.357348,2668.6,2668.5,0.88206611]
[1730274039616,3.74784,2668.2,2667.6,3.74858]
[1730274039913,4.04842978,2668.1,2667.6,3.74858]
[1730274040098,7.028,2668.0,2667.6,3.74858]
[1730274040301,7.028,2668.0,2667.7,3.74849]
[1730274041929,7.028,2668.0,2667.6,3.74858]
[1730274042075,7.028,2668.0,2667.7,3.7485]
[1730274042273,7.028,2668.0,2667.9,3.74826]
[1730274045700,7.028,2668.0,2667.9,4.53426]
[1730274046731,7.028,2668.0,2667.9,5.08426]
[1730274047736,7.028,2668.0,2667.9,4.29826]
[1730274049639,7.028,2668.0,2667.9,3.74826]
[1730274051542,7.8588,2668.0,2667.8,3.7484]
[1730274051743,8.83346445,2668.0,2667.8,3.7484]
[1730274053400,8.83346445,2668.0,2667.6,3.74864]
[1730274053607,12.58167445,2668.0,2667.4,3.74889]
[1730274053814,0.8012,2667.4,2667.1,1.80417211]
[1730274054020,11.29701645,2667.3,2667.1,1.80417211]
[1730274054412,7.54790645,2667.3,2667.1,1.80417211]
[1730274056522,7.028,2667.3,2667.1,1.80417211]
[1730274059845,7.028,2667.3,2667.1,5.55353211]
[1730274060414,7.028,2667.3,2667.2,4.51795]
[1730274061210,7.028,2667.3,2667.1,5.55353211]
[1730274061608,3.74925,2667.2,2667.1,1.80417211]
[1730274061913,4.902025,2667.2,2667.1,1.80417211]
[1730274062753,15.802775,2667.2,2666.8,3.7498]
[1730274062958,0.30043978,2667.1,2666.8,3.7498]
[1730274063245,0.30043978,2667.1,2666.7,3.74984]
[1730274063624,0.30043978,2667.1,2666.7,7.49972]
[1730274063825,1.20032523,2667.1,2666.7,7.49972]
[1730274064241,1.20032523,2667.1,2666.7,3.74984]
[1730274065327,1.20032523,2667.1,2666.7,7.49971]
[1730274066054,1.20032523,2667.1,2666.8,3.7498]
[1730274066420,0.30043978,2667.1,2666.8,3.7498]
[1730274066656,0.30043978,2667.1,2666.7,3.74984]
[1730274066817,0.30043978,2667.1,2666.9,3.74966]
[1730274067519,0.30043978,2667.1,2666.9,3.74958]
[1730274071464,0.30043978,2667.1,2666.8,3.74977]
[1730274071771,0.30043978,2667.1,2666.8,3.74981]
[1730274072135,2.19976126,2667.1,2666.8,3.74981]
[1730274074070,2.19976126,2667.1,2666.9,3.74966]
[1730274075736,2.19976126,2667.1,2666.8,3.74981]
[1730274076380,2.19976126,2667.1,2666.9,3.74966]
[1730274077283,0.30043978,2667.1,2666.9,3.74966]
[1730274077484,0.30043978,2667.1,2667.0,3.74953]
[1730274078270,0.30043978,2667.1,2667.0,5.30470618]
[1730274078466,0.30043978,2667.1,2667.0,5.85470618]
[1730274079381,0.30043978,2667.1,2667.0,4.29953]
[1730274080404,0.30043978,2667.1,2667.0,6.2313609]
[1730274081012,0.30043978,2667.1,2667.0,5.6052718]
[1730274081180,4.55067,2668.3,2667.4,3.74896]
[1730274081386,0.30043978,2668.1,2667.8,3.74839]
[1730274081771,0.30043978,2668.1,2667.7,5.30029395]
[1730274082170,0.30043978,2668.1,2667.9,3.74823]
[1730274082370,0.30043978,2668.1,2667.8,5.30015395]
[1730274082595,0.30043978,2668.1,2667.9,1.55188395]
[1730274082996,0.30043978,2668.1,2667.9,5.30014395]
[1730274083313,6.32843978,2668.2,2667.9,1.55188395]
[1730274083512,6.32843978,2668.2,2668.0,3.74811]
[1730274083872,6.32843978,2668.2,2668.1,3.74798]
[1730274085529,6.32843978,2668.2,2668.0,3.74804]
[1730274085727,6.32843978,2668.2,2668.0,7.49607]
[1730274086084,6.32843978,2668.2,2668.0,3.74803]
[1730274092392,6.32843978,2668.2,2667.8,3.7483]
[1730274092393,6.32843978,2668.2,2667.9,4.29823]
[1730274095434,6.32843978,2668.2,2667.7,0.7802]
[1730274095639,10.07634978,2668.2,2667.7,4.52872]
[1730274095873,0.776,2668.1,2667.5,0.7934]
[1730274096135,0.776,2668.1,2667.0,4.3057418]
[1730274096136,4.52454,2667.7,2667.2,3.74917]
[1730274096342,6.32843978,2667.6,2667.2,3.74917]
[1730274097647,6.32843978,2667.6,2667.3,3.74908]
[1730274097865,6.32843978,2667.6,2667.3,0.55]
[1730274098381,10.07720978,2667.6,2667.1,0.7934]
[1730274098585,10.07720978,2667.6,2667.0,5.0551318]
[1730274098740,10.07720978,2667.6,2667.1,3.74938]
[1730274099280,3.749,2667.4,2666.9,4.55714]
[1730274099481,3.74898,2667.4,2666.9,3.74954]
[1730274099649,0.7562,2667.3,2667.0,0.55]
[1730274100149,3.74948,2667.1,2666.5,3.75012]
[1730274100395,6.32843978,2667.0,2666.6,0.453182]
[1730274100599,6.32843978,2667.0,2666.6,3.74995]
[1730274100799,6.32843978,2667.0,2666.5,3.75012]
[1730274100992,6.32843978,2667.0,2666.6,3.75001]
[1730274101922,6.32843978,2667.0,2666.7,3.74984]
[1730274102235,10.07796978,2667.0,2666.5,0.55]
[1730274102383,0.798,2666.9,2666.4,3.75024]
[1730274102588,0.798,2666.9,2666.5,3.7502]
[1730274106336,0.798,2666.9,2666.3,3.75043]
[1730274106540,0.798,2666.9,2666.5,0.55]
[1730274106754,0.798,2666.9,2666.5,4.3002]
[1730274109320,0.798,2666.9,2666.5,4.30015]
[1730274109737,0.798,2666.9,2666.5,4.30014]
[1730274110154,0.798,2666.9,2666.5,3.75016]
[1730274110749,0.798,2666.9,2666.6,3.75007]
[1730274111323,0.798,2666.9,2666.5,3.75016]
[1730274116757,4.54775,2666.9,2666.4,3.75034]
[1730274116958,4.54775,2666.9,2666.3,8.05084]
[1730274116959,3.74982,2666.8,2666.3,8.05084]
[1730274117262,3.74982,2666.8,2666.3,4.30041]
[1730274117867,5.21239898,2666.8,2666.3,4.30041]
[1730274118164,5.21239898,2666.8,2666.4,3.75036]
[1730274118336,3.74982,2666.8,2666.4,3.75036]
[1730274118860,7.54768,2666.9,2666.4,3.75036]
[1730274119279,6.74968,2666.9,2666.3,8.05084]
[1730274119586,0.8305,2666.8,2666.3,8.05084]
[1730274120378,0.8305,2666.8,2666.3,4.30041]
[1730274120692,0.8305,2666.8,2666.4,3.7503]
[1730274120890,0.8305,2666.8,2666.4,3.75027]
[1730274121047,0.8305,2666.8,2666.2,3.75055]
[1730274121251,3.75002,2666.7,2666.2,3.75055]
[1730274122259,0.8305,2666.8,2666.2,3.75055]
[1730274122461,0.8305,2666.8,2666.3,3.75047]
[1730274122462,4.58033,2666.8,2666.3,3.75047]
[1730274122659,0.8305,2666.8,2666.3,3.75047]
[1730274122871,0.8305,2666.8,2666.4,3.75034]
[1730274123280,4.58033,2666.8,2666.4,3.75034]
[1730274123680,4.58033,2666.8,2666.2,3.75055]
[1730274124200,0.8305,2666.8,2666.2,3.75055]
[1730274124350,3.74996,2666.7,2666.2,3.75055]
[1730274124863,0.8309,2666.6,2666.2,3.75055]
[1730274128096,0.8309,2666.6,2666.3,3.75047]
[1730274128595,0.8309,2666.6,2666.3,3.75051]
[1730274129901,0.8309,2666.6,2666.2,7.5011]
[1730274130107,0.8309,2666.6,2666.3,3.7505]
[1730274131603,0.8309,2666.6,2666.3,7.50091]
[1730274131763,0.8309,2666.6,2666.3,3.75041]
[1730274132483,0.8309,2666.6,2666.3,7.50084]
[1730274132688,0.8309,2666.6,2666.3,3.75041]
[1730274135404,0.7932,2666.8,2666.5,3.75016]
[1730274135573,0.7932,2666.8,2666.4,4.30035]
[1730274135773,0.7932,2666.8,2666.5,3.75023]
[1730274136367,6.32843978,2667.0,2666.6,3.75007]
[1730274137069,6.32843978,2667.0,2666.7,3.74993]
[1730274139609,6.32843978,2667.0,2666.6,4.30005]
[1730274142274,6.32843978,2667.0,2666.7,3.74994]
[1730274146836,6.32843978,2667.0,2666.7,4.02889882]
[1730274148525,6.32843978,2667.0,2666.7,7.77877882]
[1730274148831,6.32843978,2667.0,2666.7,3.74988]
[1730274149202,6.32843978,2667.0,2666.7,4.02895355]
[1730274151753,6.32843978,2667.0,2666.9,4.29967]
[1730274151955,6.32843978,2667.0,2666.9,4.57874355]
[1730274152412,6.32843978,2667.0,2666.9,6.03751697]
[1730274152846,6.32843978,2667.0,2666.9,4.57874355]
[1730274153032,6.32843978,2667.0,2666.9,6.03751697]
[1730274153220,6.32843978,2667.0,2666.9,7.09396767]
[1730274157058,6.32843978,2667.0,2666.9,7.09327152]
[1730274157360,6.32843978,2667.0,2666.9,7.09319351]
[1730274160713,6.32843978,2667.0,2666.9,6.81489412]
[1730274160913,6.32843978,2667.0,2666.9,7.09306123]
[1730274164669,6.32843978,2667.0,2666.9,7.09290366]
[1730274164965,6.32843978,2667.0,2666.9,7.37091312]
[1730274167623,6.32843978,2667.0,2666.9,7.09290358]
[1730274168869,6.32843978,2667.0,2666.9,7.0928302]
[1730274169159,6.32843978,2667.0,2666.9,3.74967]
[1730274169461,6.32843978,2667.0,2666.8,3.74974]
[1730274169763,0.8189,2666.9,2666.8,3.74974]
[1730274170763,0.8189,2666.9,2666.7,4.29989]
[1730274171062,0.8189,2666.9,2666.8,4.29981]
[1730274184674,0.8189,2666.9,2666.8,0.55]
[1730274185210,0.8189,2666.9,2666.8,4.29981]
[1730274185396,7.6149,2666.9,2666.7,3.74995]
[1730274187307,7.6149,2666.9,2666.6,0.55]
[1730274187515,7.6149,2666.9,2666.6,4.57863425]
[1730274187718,7.6149,2666.9,2666.6,4.30004]
[1730274194433,7.6149,2666.9,2666.7,3.74993]
[1730274194624,7.6149,2666.9,2666.7,7.49978]
[1730274194825,7.6149,2666.9,2666.7,3.74985]
[1730274195156,7.6149,2666.9,2666.6,3.75008]
[1730274195344,8.751331,2666.9,2666.5,3.75012]
[1730274197822,7.6149,2666.9,2666.7,3.74994]
[1730274198023,7.6149,2666.9,2666.7,3.74984]
[1730274198255,7.6149,2666.9,2666.8,3.74981]
[1730274198762,7.6149,2666.9,2666.7,3.74984]
[1730274199087,7.6149,2666.9,2666.7,7.49972]
[1730274199276,7.6149,2666.9,2666.8,3.74981]
[1730274199682,7.6149,2666.9,2666.7,7.4997]
[1730274200184,7.6149,2666.9,2666.7,3.74984]
[1730274200587,6.796,2666.9,2666.8,3.74981]
[1730274207182,6.796,2666.9,2666.7,7.49971]
[1730274207380,6.796,2666.9,2666.7,3.74984]
[1730274207579,6.796,2666.9,2666.8,3.74981]
[1730274208195,6.796,2666.9,2666.8,4.02865585]
[1730274208392,6.796,2666.9,2666.8,3.74981]
[1730274210311,6.796,2666.9,2666.8,4.02874494]
[1730274215450,6.796,2666.9,2666.8,4.02907582]
[1730274215647,6.796,2666.9,2666.8,4.57907582]
[1730274215850,6.796,2666.9,2666.8,7.09677816]
[1730274216052,6.796,2666.9,2666.8,4.57907582]
[1730274218685,6.796,2666.9,2666.8,0.27926582]
[1730274218847,7.5787,2666.9,2666.8,0.27926582]
[1730274219876,11.32837,2666.9,2666.8,0.27926582]
[1730274220075,0.7827,2666.7,2666.3,0.27926582]
[1730274220277,4.53293,2666.5,2666.4,0.27926582]
[1730274220729,4.53293,2666.5,2666.1,3.75072]
[1730274220730,4.53293,2666.5,2666.2,0.27926582]
[1730274220887,0.7827,2666.5,2666.3,0.27926582]
[1730274221046,0.7827,2666.5,2666.4,0.27926582]
[1730274221249,1.2813041,2666.5,2666.4,0.27926582]
[1730274221459,1.2813041,2666.5,2666.2,0.27926582]
[1730274221661,1.2813041,2666.5,2666.3,0.27926582]
[1730274221859,1.2813041,2666.5,2666.4,0.27926582]
[1730274222146,1.2813041,2666.5,2666.3,0.27926582]
[1730274222368,1.2813041,2666.5,2666.2,0.27926582]
[1730274222578,1.2813041,2666.5,2666.3,0.27926582]
[1730274223251,0.54846451,2666.4,2666.2,0.27926582]
[1730274223549,6.796,2666.3,2666.0,0.2792322]
[1730274223877,6.796,2666.3,2666.1,0.2792322]
[1730274224182,6.796,2666.3,2666.2,0.2792322]
[1730274224369,6.796,2666.3,2665.9,7.50199]
[1730274224588,6.796,2666.3,2666.0,4.03012324]
[1730274224779,6.796,2666.3,2666.1,0.27919324]
[1730274225810,6.796,2666.3,2666.1,0.27914148]
[1730274226102,6.796,2666.3,2666.0,0.27914148]
[1730274226286,6.796,2666.3,2666.1,0.27914148]
[1730274226472,6.796,2666.3,2665.9,3.75099]
[1730274226473,6.796,2666.3,2666.0,0.27914148]
[1730274226959,6.796,2666.3,2665.9,3.75099]
[1730274226960,6.796,2666.3,2666.1,0.27914148]
[1730274227163,6.796,2666.3,2666.0,4.03007148]
[1730274231067,6.796,2666.3,2666.1,3.75078]
[1730274236888,0.7559,2666.2,2665.8,3.7512]
[1730274237077,0.7559,2666.2,2666.0,0.27881729]
[1730274237415,0.7559,2666.2,2665.9,3.751]
[1730274238608,7.622,2666.1,2665.8,3.7512]
[1730274239522,7.622,2666.1,2665.9,3.75107]
[1730274242208,7.622,2666.1,2665.7,3.75127]
[1730274242434,7.622,2666.1,2665.8,3.75121]
[1730274245003,7.622,2666.1,2665.7,3.75127]
[1730274245326,7.622,2666.1,2665.9,5.20984342]
[1730274245538,6.796,2666.3,2666.2,5.12525]
[1730274245719,6.796,2666.3,2666.2,6.58402342]
[1730274245920,6.796,2666.3,2666.2,6.86257051]
[1730274246126,6.796,2666.3,2666.2,6.8625588]
[1730274246297,6.796,2666.3,2666.2,8.0204493]
[1730274246499,6.796,2666.3,2666.2,8.29898202]
[1730274249599,6.796,2666.3,2666.2,8.0204493]
[1730274249795,6.796,2666.3,2666.2,8.29890841]
[1730274250420,6.796,2666.3,2666.2,8.0204493]
[1730274250621,6.796,2666.3,2666.2,8.29889369]
[1730274251840,0.7647,2667.1,2666.7,3.74987]
[1730274251997,6.796,2667.0,2666.8,3.74979]
[1730274253532,6.796,2667.0,2666.8,2.98340676]
[1730274253698,6.796,2667.0,2666.9,4.29967]
[1730274253899,6.796,2667.0,2666.9,5.08757]
[1730274254100,6.796,2667.0,2666.9,5.36590793]
[1730274256901,6.796,2667.0,2666.9,5.08757]
[1730274278791,2.89,2667.3,2667.2,3.74925]
[1730274278999,2.89,2667.3,2667.2,5.75802342]
[1730274288272,0.823,2667.2,2666.6,3.01]
[1730274288511,0.823,2667.2,2667.0,3.74945]
[1730274289248,2.89,2667.3,2667.1,3.74935]
[1730274289754,6.796,2667.7,2667.6,3.74868]
[1730274289916,6.796,2667.7,2667.6,5.20745342]
[1730274292350,6.796,2667.7,2667.6,3.74868]
[1730274293415,6.796,2667.7,2667.6,6.03572535]
[1730274299863,6.796,2667.7,2667.6,5.75745342]
[1730274300195,6.796,2667.7,2667.6,6.0359563]
[1730274300386,6.796,2667.7,2667.6,4.57719877]
[1730274300543,6.796,2667.7,2667.6,6.03597219]
[1730274302574,7.5883,2667.7,2667.6,4.02713295]
[1730274302979,7.5883,2667.7,2667.6,0.27845295]
[1730274303270,8.34713,2667.7,2667.5,0.27845295]
[1730274303502,8.34713,2667.7,2667.5,3.74875]
[1730274303874,6.796,2667.7,2667.5,3.74875]
[1730274304080,6.796,2667.7,2667.6,3.74868]
[1730274304288,6.796,2667.7,2667.6,4.02713295]
[1730274306004,6.796,2667.7,2667.6,3.74868]
[1730274306167,6.796,2667.7,2667.6,4.02733475]
[1730274308685,7.6055,2667.7,2667.6,4.02733475]
[1730274308886,7.6055,2667.7,2667.6,3.74868]
[1730274309905,7.6055,2667.7,2667.5,0.27866967]
[1730274310312,8.740876,2667.7,2667.4,0.27866967]
[1730274311512,8.740876,2667.7,2667.4,4.02761967]
[1730274311687,8.740876,2667.7,2667.4,3.74895]
[1730274311891,8.740876,2667.7,2667.4,4.02761967]
[1730274312090,8.740876,2667.7,2667.4,3.74895]
[1730274312302,8.740876,2667.7,2667.4,4.02769936]
[1730274312513,8.740876,2667.7,2667.4,3.74895]
[1730274312811,8.740876,2667.7,2667.4,4.02769936]
[1730274312988,8.740876,2667.7,2667.4,3.74895]
[1730274313189,8.740876,2667.7,2667.4,7.77654936]
[1730274313416,7.6055,2667.7,2667.5,0.27874936]
[1730274313611,6.796,2667.7,2667.6,3.74868]
[1730274313917,6.796,2667.7,2667.6,4.29868]
[1730274314119,6.796,2667.7,2667.6,4.57737426]
[1730274316011,6.796,2667.7,2667.6,4.57737037]
[1730274316797,6.796,2667.7,2667.6,4.02737037]
[1730274316998,6.796,2667.7,2667.6,0.27869037]
[1730274316999,7.6035,2667.7,2667.6,0.27869037]
[1730274317209,7.6035,2667.7,2667.5,3.74881]
[1730274317405,7.6035,2667.7,2667.5,4.02756378]
[1730274317720,7.6035,2667.7,2667.5,3.74881]
[1730274317893,7.6035,2667.7,2667.5,4.02756378]
[1730274318094,7.6035,2667.7,2667.5,3.74881]
[1730274318418,7.6035,2667.7,2667.6,3.74868]
[1730274319500,7.6035,2667.7,2667.5,3.74881]
[1730274319764,8.36385,2667.7,2667.3,3.74902]
[1730274319920,8.36385,2667.7,2667.5,0.27880126]
[1730274320105,8.36385,2667.7,2667.4,0.27880126]
[1730274321004,8.36385,2667.7,2667.4,4.02774126]
[1730274321207,8.36385,2667.7,2667.5,0.27880126]
[1730274321435,8.36385,2667.7,2667.3,3.74904]
[1730274321611,7.6035,2667.7,2667.4,0.27880126]
[1730274322442,7.6035,2667.7,2667.5,0.27880126]